bitfinex-derivatives/quotes_BTCF0:USTF0_20251217
["timestamp","ask_amount","ask_price","bid_price","bid_amount"]
[1766008476428,0.001,86036.0,86031.0,0.3608]
[1766008477136,0.3608,86045.0,86031.0,0.3608]
[1766008477343,0.0116246,86052.0,86039.0,0.3608]
[1766008477640,0.18458249,86060.0,86039.0,0.3608]
[1766008477935,0.0116244,86053.0,86039.0,0.3724262]
[1766008478140,0.0116237,86059.0,86049.0,0.3608]
[1766008478327,0.3608,86072.0,86049.0,0.3608]
[1766008478328,0.0116234,86061.0,86049.0,0.3608]
[1766008478528,0.0116237,86059.0,86045.0,0.00017439]
[1766008478928,0.3608,86053.0,86045.0,0.00017439]
[1766008479136,0.0116245,86052.0,86045.0,0.00017439]
[1766008479337,0.3608,86053.0,86045.0,0.00017439]
[1766008479733,0.3608,86053.0,86045.0,0.00217439]
[1766008480433,0.3608,86053.0,86045.0,0.00117439]
[1766008480834,0.0116248,86050.0,86045.0,9e-08]
[1766008481028,0.3724245,86053.0,86045.0,9e-08]
[1766008481527,0.0116247,86051.0,86045.0,9e-08]
[1766008482324,0.0116247,86051.0,86045.0,0.001]
[1766008483441,0.0116247,86051.0,86040.0,0.3608]
[1766008484443,0.011625,86049.0,86040.0,0.3608]
[1766008485042,0.3608,86053.0,85996.0,0.04200244]
[1766008485043,0.3608,86041.0,86021.0,0.09730554]
[1766008485242,0.3724261,86041.0,86026.0,0.3608]
[1766008485448,0.0116264,86039.0,86026.0,0.3608]
[1766008485650,0.0106264,86039.0,86026.0,0.3608]
[1766008486449,0.0106264,86039.0,86028.0,0.001]
[1766008486743,0.0116263,86039.0,86026.0,0.3608]
[1766008486944,0.0116263,86039.0,86026.0,0.3618]
[1766008487547,0.36097439,86041.0,86026.0,0.3618]
[1766008487949,0.36097439,86041.0,86026.0,0.3734279]
[1766008488242,0.36097439,86041.0,86026.0,0.3724279]
[1766008488446,0.36097439,86041.0,86026.0,0.3734279]
[1766008488638,0.0116262,86040.0,86026.0,0.3618]
[1766008488839,0.0116262,86040.0,86026.0,0.3608]
[1766008489042,0.0116264,86038.0,86026.0,0.3628]
[1766008489442,0.0116264,86038.0,86026.0,0.3618]
[1766008489952,0.0116264,86038.0,86026.0,0.3608]
[1766008490141,0.0116264,86038.0,86026.0,0.3618]
[1766008491449,0.0116264,86038.0,86026.0,0.3608]
[1766008491644,0.18458249,86040.0,86026.0,0.3618]
[1766008491944,0.0116281,86026.0,86024.0,9e-08]
[1766008492649,0.3608,86028.0,86026.0,0.001]
[1766008493240,0.3608,86028.0,86024.0,9e-08]
[1766008494842,0.3618,86028.0,86024.0,9e-08]
[1766008495245,0.3608,86028.0,86024.0,9e-08]
[1766008495556,0.3618,86028.0,86024.0,9e-08]
[1766008496462,0.3608,86028.0,86024.0,9e-08]
[1766008498252,0.36097439,86041.0,86027.0,0.0116279]
[1766008499256,0.37260049,86041.0,86027.0,0.0116279]
[1766008500148,0.36097439,86041.0,86032.0,0.0116272]
[1766008500353,0.36097439,86041.0,86029.0,0.0116275]
[1766008501656,0.0116262,86040.0,86027.0,0.0116278]
[1766008501847,0.0116262,86040.0,86024.0,9e-08]
[1766008501848,0.0116271,86033.0,86024.0,9e-08]
[1766008502051,0.3608,86025.0,86018.0,0.0116291]
[1766008502448,0.3608,86025.0,86021.0,0.0116287]
[1766008503347,0.3608,86025.0,86014.0,0.00017439]
[1766008504352,0.3608,86025.0,86020.0,0.0116289]
[1766008504851,0.3618,86025.0,86020.0,0.0116289]
[1766008505158,0.3608,86034.0,86021.0,0.3724286]
[1766008505560,0.3608,86034.0,86021.0,0.3608]
[1766008505755,0.3608,86034.0,86024.0,0.0116283]
[1766008508259,0.3608,86034.0,86025.0,0.0116281]
[1766008509962,0.3608,86034.0,86026.0,0.0116279]
[1766008511759,0.3608,86034.0,86024.0,0.0116283]
[1766008512253,0.372427,86034.0,86021.0,0.3608]
[1766008512668,0.0116274,86031.0,86021.0,0.3608]
[1766008513369,0.3608,86034.0,86021.0,0.3608]
[1766008513559,0.0116272,86033.0,86021.0,0.3724287]
[1766008514267,0.0116274,86032.0,86021.0,0.3608]
[1766008514471,0.0116274,86032.0,86021.0,0.3724287]
[1766008514655,0.0116274,86032.0,86021.0,0.3734287]
[1766008515060,0.3608,86034.0,86022.0,0.0116285]
[1766008515462,0.3608,86034.0,86021.0,0.3618]
[1766008515663,0.00017439,86041.0,86030.0,0.3608]
[1766008516066,0.00017439,86041.0,86030.0,0.3724274]
[1766008518168,0.00017439,86041.0,86032.0,0.0116272]
[1766008518475,0.00017439,86041.0,86031.0,0.0116274]
[1766008522179,0.0116262,86040.0,86030.0,0.3608]
[1766008524383,0.00017439,86041.0,86031.0,0.0116273]
[1766008524777,0.00017439,86041.0,86030.0,0.3618]
[1766008525378,0.00017439,86041.0,86030.0,0.3608]
[1766008526271,0.00017439,86041.0,86032.0,0.0116272]
[1766008528875,0.00017439,86041.0,86030.0,0.3608]
[1766008529076,0.01180039,86041.0,86030.0,0.3608]
[1766008529476,0.0116263,86039.0,86030.0,0.3608]
[1766008529676,0.00017439,86041.0,86030.0,0.3608]
[1766008529877,0.0116267,86037.0,86030.0,0.3608]
[1766008530285,0.3608,86031.0,86030.0,0.001]
[1766008530492,0.3608,86031.0,86024.0,0.0116282]
[1766008530880,0.3608,86031.0,86030.0,0.001]
[1766008531480,0.3608,86031.0,86024.0,0.0116282]
[1766008533086,0.0116266,86037.0,86023.0,0.0116284]
[1766008533293,0.001,86031.0,86024.0,0.0116282]
[1766008533682,0.0116266,86037.0,86021.0,0.3608]
[1766008533683,0.3724263,86039.0,86026.0,0.0116279]
[1766008533884,0.3724263,86039.0,86021.0,0.3608]
[1766008534383,0.3608,86039.0,86029.0,0.0116276]
[1766008536499,0.3618,86039.0,86030.0,0.0116274]
[1766008536697,0.3618,86039.0,86021.0,0.3608]
[1766008536698,0.3618,86039.0,86031.0,0.0116273]
[1766008536900,0.3608,86039.0,86031.0,0.0116273]
[1766008538897,0.3608,86039.0,86029.0,0.0116276]
[1766008539897,0.3608,86030.0,86018.0,0.3146]
[1766008540101,0.3608,86030.0,86014.0,0.36097439]
[1766008540299,0.3608,86030.0,86020.0,0.0116289]
[1766008540596,0.3608,86030.0,86022.0,0.0116286]
[1766008540796,0.3608,86030.0,86025.0,0.0116281]
[1766008541004,0.19413,86030.0,86025.0,0.0116281]
[1766008541905,0.19413,86030.0,86026.0,0.011628]
[1766008542906,0.19413,86030.0,86024.0,0.0116283]
[1766008544002,0.3724267,86037.0,86024.0,0.0116283]
[1766008545506,0.3724267,86037.0,86025.0,0.0116281]
[1766008545811,0.3608,86037.0,86025.0,0.0116281]
[1766008547205,0.3724266,86037.0,86025.0,0.0116281]
[1766008548208,0.3608,86037.0,86023.0,0.0116284]
[1766008548710,0.3608,86037.0,86022.0,0.3608]
[1766008549811,0.0116271,86034.0,86022.0,0.3608]
[1766008550907,0.0116271,86034.0,86023.0,0.0116284]
[1766008552005,0.18443325,86033.0,86022.0,0.3608]
[1766008552207,0.3608,86023.0,86017.0,0.0116292]
[1766008555308,0.3608,86023.0,86016.0,0.0116293]
[1766008555813,0.3608,86019.0,86001.0,0.56236]
[1766008556108,0.3608,86009.0,86003.0,0.011631]
[1766008557313,0.3608,86009.0,86004.0,0.0116309]
[1766008557909,0.3608,86009.0,86000.0,0.3608]
[1766008558713,0.3608,86009.0,86004.0,0.001]
[1766008559210,0.3608,86009.0,86000.0,0.3608]
[1766008559512,0.3608,86009.0,86000.0,0.3618]
[1766008560014,0.3608,86001.0,85997.0,0.00017439]
[1766008560400,0.3608,86001.0,85997.0,4.39e-06]
[1766008562515,0.3618,86001.0,85997.0,4.39e-06]
[1766008562904,0.3608,86009.0,86000.0,0.0116316]
[1766008563506,0.3608,86009.0,86001.0,0.0116313]
[1766008563701,0.00017439,86015.0,85997.0,0.36080439]
[1766008563909,0.18443325,86010.0,85997.0,0.36080439]
[1766008564108,0.001,86001.0,85997.0,0.36080439]
[1766008564614,0.18443325,86010.0,85997.0,0.37243639]
[1766008564917,0.18443325,86010.0,85997.0,0.37343639]
[1766008565415,0.18443325,86010.0,85997.0,0.37243639]
[1766008566110,0.3608,86011.0,85997.0,0.37243639]
[1766008566911,0.3608,86011.0,85999.0,0.0116317]
[1766008569319,0.3608,86011.0,85997.0,0.36080439]
[1766008569909,0.3608,86011.0,86003.0,0.011631]
[1766008570712,0.00017439,86015.0,86003.0,0.011631]
[1766008571218,0.01180409,86015.0,86001.0,0.0116313]
[1766008571407,0.0116298,86014.0,86001.0,0.0116313]
[1766008572824,0.00017439,86015.0,86002.0,0.0116312]
[1766008574422,0.0116297,86014.0,85997.0,0.36080439]
[1766008574618,0.00017439,86015.0,86004.0,0.3608]
[1766008575525,0.00017439,86015.0,86004.0,0.3724309]
[1766008576110,0.00017439,86015.0,86004.0,0.3608]
[1766008577618,0.0116297,86014.0,86004.0,0.3608]
[1766008579623,0.00017439,86015.0,86004.0,0.3608]
[1766008579814,0.01180409,86015.0,86004.0,0.3608]
[1766008580415,0.0116298,86014.0,86004.0,0.3608]
[1766008582714,0.01180399,86015.0,86003.0,0.3608]
[1766008582910,0.0116299,86013.0,86003.0,0.3608]
[1766008583520,0.01180399,86015.0,86003.0,0.3608]
[1766008583715,0.01180399,86015.0,86003.0,0.3724311]
[1766008584326,0.00017439,86015.0,86005.0,0.0116309]
[1766008584625,0.00017439,86015.0,86007.0,0.0116305]
[1766008585126,0.3608,86017.0,86003.0,0.3608]
[1766008585419,0.0116295,86015.0,86003.0,0.3608]
[1766008585627,0.0116293,86017.0,86004.0,0.0116309]
[1766008586427,0.01180339,86019.0,86003.0,0.3608]
[1766008587626,0.0116293,86017.0,86004.0,0.011631]
[1766008588424,0.0116296,86015.0,86003.0,0.3608]
[1766008588614,0.0116296,86015.0,86003.0,0.3724311]
[1766008588817,0.0116293,86017.0,86003.0,0.3724311]
[1766008589615,0.0116302,86011.0,86003.0,0.3608]
[1766008589819,0.0116298,86013.0,86003.0,0.3608]
[1766008590523,0.00017439,86019.0,86003.0,0.3608]
[1766008591421,0.00017439,86019.0,86010.0,0.0116302]
[1766008592922,0.00117439,86019.0,86010.0,0.0116302]
[1766008594119,0.00117439,86019.0,86007.0,0.0116305]
[1766008594322,0.00117439,86019.0,86009.0,0.0116304]
[1766008597223,0.00117439,86019.0,86003.0,0.3608]
[1766008597434,0.0116292,86018.0,86004.0,0.011631]
[1766008600028,0.00017439,86019.0,86005.0,0.0116308]
[1766008600230,0.00017439,86019.0,86003.0,0.3608]
[1766008600418,0.00017439,86019.0,86008.0,0.0116304]
[1766008600620,0.3724285,86024.0,86004.0,0.011631]
[1766008601632,0.3724285,86024.0,86011.0,0.01163]
[1766008601819,0.00017439,86023.0,86014.0,0.0116296]
[1766008602023,0.0116256,86045.0,86010.0,0.3608]
[1766008602024,0.75816,86039.0,86022.0,0.3608]
[1766008602227,0.0116274,86032.0,86022.0,0.3608]
[1766008602623,0.01267756,86036.0,86022.0,0.3608]
[1766008602624,0.011627,86034.0,86022.0,0.3608]
[1766008603121,0.011627,86034.0,86029.0,0.3608]
[1766008604634,0.0116267,86036.0,86029.0,0.3608]
[1766008605223,0.002,86034.0,86029.0,0.3608]
[1766008605934,0.0136267,86036.0,86029.0,0.3608]
[1766008606435,0.00017439,86037.0,86029.0,0.3608]
[1766008606436,0.012627,86034.0,86029.0,0.3608]
[1766008606633,0.001,86034.0,86029.0,0.3608]
[1766008607029,0.0116271,86033.0,86029.0,0.3608]
[1766008607737,0.001,86034.0,86029.0,0.3608]
[1766008608037,0.011627,86034.0,86029.0,0.3608]
[1766008608238,0.001,86036.0,86029.0,0.3608]
[1766008608432,0.001,86033.0,86029.0,0.3608]
[1766008608938,0.0116271,86034.0,86029.0,0.3608]
[1766008609144,0.0126271,86034.0,86029.0,0.3608]
[1766008609528,0.0116271,86034.0,86029.0,0.3608]
[1766008609730,0.001,86033.0,86029.0,0.3608]
[1766008610837,0.0116275,86031.0,86022.0,0.3608]
[1766008611137,0.0116278,86029.0,86022.0,0.3608]
[1766008611338,0.0116274,86031.0,86022.0,0.3608]
[1766008613441,0.0116276,86030.0,86022.0,0.3608]
[1766008615644,0.0116278,86029.0,86022.0,0.3608]
[1766008618034,0.0116274,86031.0,86022.0,0.3608]
[1766008618234,0.0116271,86033.0,86022.0,0.3608]
[1766008619146,0.0116274,86032.0,86022.0,0.3608]
[1766008620150,0.3608,86035.0,86022.0,0.3608]
[1766008621436,0.0116272,86033.0,86022.0,0.3724286]
[1766008623051,0.3608,86035.0,86023.0,0.0116284]
[1766008623349,0.3608,86035.0,86024.0,0.0116282]
[1766008624651,0.3618,86035.0,86025.0,0.0116281]
[1766008624846,0.3618,86035.0,86027.0,0.0116279]
[1766008625447,0.0116252,86048.0,86035.0,0.0116268]
[1766008626039,0.55687315,86050.0,86037.0,0.0116265]
[1766008626345,0.3724248,86050.0,86037.0,0.0116265]
[1766008626542,0.0116251,86049.0,86037.0,0.0116265]
[1766008626743,0.0116252,86047.0,86034.0,0.0116269]
[1766008627748,0.3734249,86050.0,86036.0,0.0116266]
[1766008628050,0.001,86047.0,86036.0,0.0116266]
[1766008629450,0.001,86047.0,86038.0,0.3608]
[1766008629954,0.0116251,86049.0,86038.0,0.3608]
[1766008630152,0.3608,86051.0,86038.0,0.3608]
[1766008630347,0.0116252,86048.0,86038.0,0.3608]
[1766008632450,0.3724248,86051.0,86038.0,0.3724264]
[1766008632645,0.0116249,86050.0,86038.0,0.3724264]
[1766008633055,0.0116251,86049.0,86038.0,0.3608]
[1766008634148,0.3608,86051.0,86038.0,0.3608]
[1766008634550,0.01261334,86052.0,86038.0,0.3608]
[1766008636347,0.01261334,86052.0,86045.0,0.3608]
[1766008636849,0.011626,86042.0,86036.0,0.00017439]
[1766008637149,0.3608,86037.0,86036.0,0.00017439]
[1766008639050,0.3608,86037.0,86028.0,0.0116277]
[1766008639949,0.3608,86037.0,86024.0,0.3608]
[1766008640252,0.0116234,86061.0,86036.0,0.3608]
[1766008640253,0.0116248,86051.0,86036.0,0.3608]
[1766008640550,0.0116248,86051.0,86043.0,0.3608]
[1766008640954,0.00017,86052.0,86043.0,0.3608]
[1766008642357,0.0116251,86049.0,86043.0,0.3608]
[1766008643144,0.00117,86052.0,86043.0,0.3608]
[1766008643348,0.0116235,86061.0,86051.0,0.3608]
[1766008643547,0.54524835,86070.0,86052.0,0.0116244]
[1766008643548,0.0116227,86066.0,86052.0,0.0116244]
[1766008643752,0.518103,86064.0,86052.0,0.0116244]
[1766008644058,0.518103,86064.0,86051.0,0.3608]
[1766008644459,0.00017439,86063.0,86051.0,0.3608]
[1766008644855,3e-08,86058.0,86056.0,0.011624]
[1766008645357,0.00100003,86058.0,86053.0,0.0116243]
[1766008645857,3e-08,86058.0,86053.0,0.0116243]
[1766008646454,3e-08,86058.0,86053.0,0.0126243]
[1766008647055,3e-08,86058.0,86055.0,0.011624]
[1766008647558,0.00017439,86063.0,86058.0,0.0116236]
[1766008647746,0.00017439,86063.0,86062.0,0.3608]
[1766008648957,0.00017439,86063.0,86051.0,0.3608]
[1766008650264,0.0116232,86062.0,86051.0,0.3608]
[1766008651364,0.01179749,86063.0,86051.0,0.3608]
[1766008651566,0.0116233,86061.0,86051.0,0.3618]
[1766008652065,0.0116233,86061.0,86051.0,0.3608]
[1766008652267,0.0116233,86061.0,86051.0,0.3618]
[1766008652466,0.00017439,86063.0,86051.0,0.3618]
[1766008652661,0.00017439,86063.0,86052.0,0.0116245]
[1766008652967,0.00017439,86063.0,86057.0,0.0116239]
[1766008653567,0.00017439,86063.0,86054.0,0.0116242]
[1766008655069,0.00017439,86063.0,86056.0,0.011624]
[1766008655466,9e-08,86063.0,86058.0,0.3608]
[1766008655770,9e-08,86063.0,86059.0,0.0116236]
[1766008657268,9e-08,86063.0,86058.0,0.3608]
[1766008657667,0.00100009,86063.0,86059.0,0.0116236]
[1766008657868,0.3608,86067.0,86058.0,0.3608]
[1766008658569,0.3608,86067.0,86062.0,0.0116231]
[1766008659065,0.3608,86067.0,86063.0,0.0116229]
[1766008659266,0.0116216,86075.0,86063.0,0.0116229]
[1766008659470,0.3724212,86077.0,86063.0,0.0116229]
[1766008659765,0.3608,86077.0,86060.0,0.18430894]
[1766008659970,0.3724212,86077.0,86060.0,0.18430894]
[1766008660359,0.3724212,86077.0,86058.0,0.3618]
[1766008660573,0.0116216,86075.0,86058.0,0.3618]
[1766008660773,0.0116216,86075.0,86062.0,0.001]
[1766008661374,0.0116216,86075.0,86063.0,0.0116229]
[1766008661779,0.0116217,86074.0,86061.0,0.0116233]
[1766008661962,0.3608,86077.0,86062.0,0.001]
[1766008662169,0.3608,86069.0,86062.0,0.001]
[1766008662571,0.3608,86069.0,86063.0,0.001]
[1766008662876,0.0116225,86067.0,86058.0,0.3608]
[1766008663268,0.3724223,86069.0,86051.0,0.3608]
[1766008663767,0.3724223,86069.0,86057.0,0.0116238]
[1766008663970,0.3724223,86069.0,86058.0,0.0116236]
[1766008665173,0.3724223,86069.0,86058.0,0.0126236]
[1766008665368,0.3608,86069.0,86058.0,0.0126236]
[1766008665969,0.3608,86069.0,86058.0,0.001]
[1766008666170,0.3608,86069.0,86059.0,0.0116236]
[1766008667580,0.3608,86069.0,86051.0,0.3724246]
[1766008667581,0.3608,86069.0,86057.0,0.0116239]
[1766008668775,0.3608,86069.0,86060.0,0.0116235]
[1766008669581,0.3608,86069.0,86057.0,0.001]
[1766008669582,0.3608,86069.0,86059.0,0.0116235]
[1766008670280,0.3608,86069.0,86060.0,0.0116234]
[1766008671481,0.0116227,86066.0,86051.0,0.3608]
[1766008671675,0.3608,86069.0,86056.0,0.0116239]
[1766008671676,0.0116224,86068.0,86056.0,0.0116239]
[1766008671876,0.3608,86069.0,86051.0,0.3608]
[1766008672077,0.3724224,86069.0,86057.0,0.0116238]
[1766008672391,0.3608,86069.0,86051.0,0.3608]
[1766008672586,0.3608,86069.0,86059.0,0.0116236]
[1766008673775,0.18430894,86070.0,86059.0,0.0116236]
[1766008673976,0.3608,86067.0,86059.0,0.0116236]
[1766008675388,0.3608,86067.0,86057.0,0.0116239]
[1766008675880,0.3608,86067.0,86055.0,0.0116241]
[1766008677286,0.3608,86067.0,86055.0,0.0126241]
[1766008679186,0.3608,86067.0,86055.0,0.001]
[1766008679392,0.011623,86064.0,86054.0,0.3608]
[1766008679694,0.0116227,86066.0,86054.0,0.3608]
[1766008680081,0.0116229,86064.0,86054.0,0.3608]
[1766008680483,0.0116227,86066.0,86054.0,0.3608]
[1766008680684,0.0116227,86066.0,86054.0,0.3724241]
[1766008683083,0.3608,86067.0,86054.0,0.3608]
[1766008683996,0.0116229,86065.0,86054.0,0.3608]
[1766008685191,0.3608,86067.0,86054.0,0.3608]
[1766008685192,0.0116231,86063.0,86054.0,0.3608]
[1766008685398,0.0116233,86062.0,86054.0,0.3608]
[1766008685593,0.0116229,86065.0,86054.0,0.3608]
[1766008690703,0.0116228,86066.0,86054.0,0.3608]
[1766008690999,0.0116229,86065.0,86054.0,0.3608]
[1766008692292,0.011623,86064.0,86054.0,0.3608]
[1766008692488,0.3608,86055.0,86046.0,0.00017439]
[1766008692693,0.3608,86048.0,86046.0,0.00017439]
[1766008693602,0.3608,86048.0,86046.0,0.00117439]
[1766008695097,0.3608,86048.0,86046.0,0.00017439]
[1766008695604,0.3618,86048.0,86046.0,0.00017439]
[1766008697099,0.3618,86048.0,86035.0,0.3608]
[1766008697299,0.3608,86041.0,86030.0,0.0116275]
[1766008699304,0.18430448,86040.0,86035.0,0.001]
[1766008699493,0.3608,86041.0,86035.0,0.001]
[1766008699695,0.3608,86041.0,86030.0,0.0116275]
[1766008699992,0.0116275,86030.0,86027.0,0.00017428]
[1766008700290,0.3608,86028.0,86027.0,8e-08]
[1766008708315,0.3608,86031.0,86027.0,8e-08]
[1766008711118,0.3608,86031.0,86028.0,0.0116278]
[1766008711319,0.3608,86034.0,86030.0,0.0116274]
[1766008711514,0.3588,86034.0,86030.0,0.0116274]
[1766008711917,0.3588,86034.0,86028.0,0.0116278]
[1766008712420,0.3588,86034.0,86031.0,0.0116273]
[1766008712622,0.36097404,86044.0,86033.0,0.3608]
[1766008715119,0.00017404,86044.0,86033.0,0.3608]
[1766008715309,0.00017404,86044.0,86033.0,0.3724271]
[1766008716923,0.00017404,86044.0,86037.0,0.3608]
[1766008718319,0.00117404,86044.0,86037.0,0.3608]
[1766008720822,0.00017404,86044.0,86037.0,0.3608]
[1766008721017,0.3608,86040.0,86027.0,8e-08]
[1766008722028,0.3608,86040.0,86027.0,0.00100008]
[1766008722330,0.3724263,86040.0,86027.0,0.00100008]
[1766008722521,0.3724263,86040.0,86027.0,8e-08]
[1766008722720,0.3724263,86040.0,86027.0,0.00100008]
[1766008724022,0.3608,86040.0,86027.0,0.00100008]
[1766008724426,0.3724263,86040.0,86027.0,0.00100008]
[1766008724829,0.3724263,86040.0,86028.0,0.0116277]
[1766008725437,0.0116263,86039.0,86027.0,0.01262798]
[1766008727229,0.0116263,86039.0,86027.0,0.01162798]
[1766008727729,0.0116263,86039.0,86027.0,0.01262798]
[1766008728130,0.0116265,86038.0,86027.0,0.01262798]
[1766008728821,0.0116265,86038.0,86027.0,0.01162798]
[1766008729017,0.0116265,86038.0,86027.0,0.01262798]
[1766008730630,0.3608,86050.0,86037.0,0.3608]
[1766008730935,0.3608,86060.0,86027.0,0.00100008]
[1766008730936,0.0116238,86058.0,86043.0,0.3724257]
[1766008731232,0.54526173,86060.0,86043.0,0.3608]
[1766008731425,0.3608,86060.0,86043.0,0.3608]
[1766008731728,0.18463593,86060.0,86043.0,0.3608]
[1766008731933,0.3608,86053.0,86043.0,0.3608]
[1766008732337,0.3608,86053.0,86044.0,0.0116256]
[1766008733935,0.3608,86053.0,86044.0,0.0126256]
[1766008734439,0.3608,86053.0,86044.0,0.0116256]
[1766008734632,0.3608,86053.0,86043.0,0.3608]
[1766008735126,0.3608,86053.0,86044.0,0.001]
[1766008736235,0.0116245,86052.0,86044.0,0.001]
[1766008736622,0.0116245,86052.0,86043.0,0.3608]
[1766008737336,0.3608,86044.0,86027.0,8e-08]
[1766008737530,0.7216,86028.0,86027.0,8e-08]
[1766008738927,0.7216,86028.0,86009.0,0.0116303]
[1766008739124,0.3608,86019.0,86009.0,0.0116303]
[1766008739944,0.3608,86019.0,86010.0,0.00017438]
[1766008740541,0.3608,86019.0,86018.0,0.001]
[1766008741130,0.3608,86019.0,86010.0,0.00217438]
[1766008742043,0.0116284,86024.0,86010.0,0.00217438]
[1766008742233,0.3608,86017.0,86010.0,0.00217438]
[1766008742428,0.3608,86027.0,86010.0,0.00217438]
[1766008742640,0.0001742,86036.0,86026.0,0.3608]
[1766008742942,0.0001742,86036.0,86033.0,0.3608]
[1766008743236,4.2e-06,86036.0,86033.0,0.3608]
[1766008743935,0.0010042,86036.0,86033.0,0.3608]
[1766008744435,4.2e-06,86036.0,86026.0,0.3608]
[1766008745337,0.011631,86036.0,86026.0,0.3608]
[1766008745540,0.011627,86034.0,86026.0,0.3608]
[1766008745840,0.0116272,86033.0,86026.0,0.3608]
[1766008747432,0.0116268,86035.0,86026.0,0.3608]
[1766008748442,4.2e-06,86036.0,86026.0,0.3608]
[1766008749138,2.21342646,86100.0,86036.0,0.0116266]
[1766008749139,0.011625,86049.0,86036.0,0.0116266]
[1766008749339,0.3608,86060.0,86027.0,0.0116279]
[1766008749340,0.0116242,86055.0,86033.0,0.3608]
[1766008749534,0.0116242,86055.0,86043.0,0.0116256]
[1766008749730,0.0116238,86058.0,86045.0,0.0116254]
[1766008749935,0.25,86051.0,86045.0,0.0116254]
[1766008750134,0.25,86051.0,86042.0,0.3724258]
[1766008750930,0.3608,86060.0,86039.0,0.00017438]
[1766008751140,0.3608,86060.0,86003.0,0.3608]
[1766008751141,0.3608,86040.0,86003.0,0.3608]
[1766008751345,0.3608,86010.0,86003.0,0.0116311]
[1766008751548,0.3608,86010.0,85997.0,0.3608]
[1766008751748,0.0116304,86009.0,85997.0,0.3608]
[1766008752041,0.3608,86001.0,85996.0,0.00012883]
[1766008752451,0.3608,86001.0,85997.0,0.011632]
[1766008753836,0.3608,86001.0,85997.0,0.001]
[1766008754548,0.3608,86010.0,85998.0,0.0116318]
[1766008755251,0.3608,86026.0,86000.0,0.18444268]
[1766008755450,0.3608,86026.0,86009.0,0.3608]
[1766008756451,0.0116285,86023.0,86009.0,0.3608]
[1766008757151,0.0116285,86023.0,86009.0,0.3618]
[1766008758745,0.0116285,86023.0,86009.0,0.001]
[1766008758944,0.0116285,86023.0,86012.0,0.3608]
[1766008759444,0.0116285,86023.0,86009.0,0.001]
[1766008759445,0.3608,86015.0,86009.0,0.001]
[1766008759751,0.3608,86015.0,86002.0,0.3608]
[1766008759752,0.0116305,86008.0,86002.0,0.3608]
[1766008760252,0.0116302,86011.0,86002.0,0.3608]
[1766008760444,0.3608,86007.0,85996.0,0.00012883]
[1766008761547,0.0116291,86019.0,86004.0,0.3608]
[1766008761751,0.0116289,86020.0,86012.0,0.3608]
[1766008762341,0.0116283,86025.0,86012.0,0.3608]
[1766008762553,0.0116285,86023.0,86012.0,0.3608]
[1766008767551,0.0116287,86022.0,86012.0,0.3608]
[1766008767752,0.3608,86028.0,86012.0,0.3608]
[1766008769247,0.011628,86027.0,86013.0,0.0116298]
[1766008769447,0.0116282,86026.0,86013.0,0.0116298]
[1766008770155,0.3608,86028.0,86012.0,0.3608]
[1766008770354,0.3608,86036.0,86021.0,0.3608]
[1766008770555,0.3608,86036.0,86028.0,0.3724277]
[1766008770748,0.0116239,86057.0,86035.0,0.3608]
[1766008770749,0.0116255,86045.0,86035.0,0.3608]
[1766008771057,0.02504161,86044.0,86035.0,0.3608]
[1766008771246,0.0116252,86047.0,86035.0,0.3608]
[1766008771446,0.0116251,86048.0,86036.0,0.0116267]
[1766008771661,0.0116251,86048.0,86035.0,0.3608]
[1766008772054,0.3608,86051.0,86035.0,0.3608]
[1766008772249,0.02504137,86050.0,86035.0,0.3608]
[1766008772451,0.0116255,86045.0,86035.0,0.3608]
[1766008772653,0.0116256,86045.0,86035.0,0.3608]
[1766008773452,0.0116252,86048.0,86035.0,0.3608]
[1766008773863,0.3608,86055.0,86045.0,0.3608]
[1766008774250,0.011624,86056.0,86045.0,0.3608]
[1766008774452,0.0116237,86059.0,86046.0,0.0116254]
[1766008774854,0.0116239,86057.0,86045.0,0.3608]
[1766008775050,0.01394783,86058.0,86045.0,0.3608]
[1766008775454,0.0116242,86055.0,86045.0,0.3608]
[1766008775760,0.00232403,86058.0,86045.0,0.3608]
[1766008776061,0.00232403,86058.0,86045.0,0.3724254]
[1766008776258,0.00232403,86058.0,86048.0,0.011625]
[1766008778062,0.00232403,86058.0,86045.0,0.3724254]
[1766008778257,0.00232403,86058.0,86035.0,0.3608]
[1766008778558,0.00232403,86058.0,86037.0,0.3608]
[1766008778559,0.3724246,86052.0,86037.0,0.3608]
[1766008779455,0.18438231,86050.0,86037.0,0.3608]
[1766008779964,0.19600721,86050.0,86037.0,0.3608]
[1766008782249,0.0116251,86048.0,86037.0,0.3608]
[1766008783459,0.0116256,86045.0,86037.0,0.3608]
[1766008783660,0.0116252,86048.0,86037.0,0.3608]
[1766008787256,0.19600711,86050.0,86037.0,0.3724266]
[1766008788066,0.19600721,86050.0,86038.0,0.0116264]
[1766008788364,0.011625,86049.0,86037.0,0.3608]
[1766008788967,0.0116252,86047.0,86037.0,0.3608]
[1766008790461,0.3724247,86052.0,86037.0,0.3724265]
[1766008790658,0.011625,86049.0,86037.0,0.3608]
[1766008790853,0.0116255,86045.0,86037.0,0.3608]
[1766008791861,0.3608,86053.0,86031.0,0.00017438]
[1766008791862,0.0116251,86048.0,86039.0,0.3608]
[1766008792067,0.18438231,86050.0,86039.0,0.3608]
[1766008792258,0.19600721,86050.0,86039.0,0.3608]
[1766008792458,0.3608,86042.0,86031.0,0.00017438]
[1766008793867,0.3608,86053.0,86039.0,0.3608]
[1766008794063,0.18438231,86050.0,86039.0,0.3608]
[1766008794264,0.0116259,86042.0,86039.0,0.3608]
[1766008794572,0.18438231,86050.0,86039.0,0.3608]
[1766008795064,0.0116268,86036.0,86031.0,0.00017438]
[1766008795269,0.3608,86035.0,86028.0,0.3608]
[1766008795655,0.3608,86044.0,86028.0,0.3608]
[1766008796269,0.3608,86029.0,86005.0,0.3608]
[1766008796467,0.36876462,86040.0,85978.0,0.00232619]
[1766008796468,0.3608,86014.0,86007.0,0.0116305]
[1766008796763,0.3608,86023.0,86011.0,0.0116301]
[1766008796971,0.0116276,86030.0,86017.0,0.3608]
[1766008797165,0.3608,86033.0,86017.0,0.3608]
[1766008797364,0.02505775,86032.0,86017.0,0.3608]
[1766008797566,0.0116275,86031.0,86017.0,0.3724292]